Cogmind - Beta 16 @@@ ROGUE MODE // 2025.11.14 @ 11:59:43 Player: omewwes Result: Self-destructed Performance ------------- Evolutions (3) 1500 Regions Visited (9) 1800 Robots Destroyed (107) 535 Value Destroyed (5097) 5097 Prototype IDs (3) 60 Alien Tech Used (0) 0 Bonus (2875) 2875 TOTAL SCORE: 11867 Bonus ------- High Alert Combat Kills 392 Follower Combat Kills 383 Entered Garrisons 600 Used RIF Installer 1500 Cogmind --------- Core Integrity 375/700 Matter 300/300 Energy 70/100 System Corruption 0% Temperature Cool (0) Movement Core (750) Ox14 Location -7/Garrison Parts ------- > --- POWER (1) -------- (None) > --- PROPULSION (3) --- (None) > --- UTILITY (6) ------ High-capacity Storage Unit Improved Signal Interpreter > --- WEAPON (3) ------- Heavy Laser > --- INVENTORY (20) --- Light Treads Armored Huge Wheel Improved Heat Sink Transmission Jammer Hacking Suite Relay Coupler [NC] (28) Relay Coupler [Grunt] (21) Relay Coupler [Grunt] (29) Relay Coupler [Grunt] (26) Relay Coupler [Grunt] (31) Relay Coupler [Brawler] (23) Relay Coupler [Demolisher] (19) Heavy Laser Plasma Cannon Datajack Improved Datajack Remote Datajack Peak State ------------ > --- POWER ------------ Light Nuclear Core > --- PROPULSION ------- Wheel Armored Huge Wheel > --- UTILITY ---------- Improved Heat Sink Improved Heat Sink Improved Heat Sink Advanced Heat Sink High-capacity Storage Unit Transmission Jammer > --- WEAPON ----------- Plasma Cannon Plasma Cannon Plasma Cannon > --- INVENTORY -------- Improved Ion Engine Deuterium Engine Light Treads Armored Huge Wheel Hacking Suite Relay Coupler [NC] Relay Coupler [NC] Relay Coupler [Swarmer] Relay Coupler [Swarmer] Relay Coupler [Swarmer] Relay Coupler [Swarmer] Relay Coupler [Grunt] Relay Coupler [Grunt] Relay Coupler [Grunt] Relay Coupler [Grunt] Relay Coupler [Brawler] Relay Coupler [Demolisher] Datajack Improved Datajack [Rating: 48] Favorites ----------- Power Improved Ion Engine Engine Improved Ion Engine Power Core Light Nuclear Core Propulsion Light Treads Treads Light Treads Leg Aluminum Leg Wheel Armored Huge Wheel Hover Unit Hover Unit Utility Advanced Heat Sink Device Advanced Heat Sink Storage Medium Storage Unit Processor Transport Network Coupler Hackware Relay Coupler [NC] Protection Light Armor Plating Weapon Plasma Cannon Energy Gun Heavy Laser Energy Cannon Plasma Cannon Ballistic Gun Heavy Assault Rifle Launcher Heavy Missile Launcher Special Melee Weapon Improved Datajack Build | -11 -10 -10 -9 -8 -8 -8 -8 -7 -7 ------- Run | Yrd Mat Min Mat Mat Gar Mat Gar Fac Gar Slots Evolved 6 | . . . 2 2 . . . 2 . Power . | . . . . . . . . . . Propulsion 1 | . . . 1 . . . . . . Utility 4 | . . . . 2 . . . 2 . Weapon 1 | . . . 1 . . . . . . Parts Attached 111 | 6 10 . 21 8 23 11 14 17 1 Power 12 | 1 1 . 1 1 4 1 2 1 . Engine 8 | 1 1 . 1 1 2 1 1 . . Core 4 | . . . . . 2 . 1 1 . Reactor . | . . . . . . . . . . Propulsion 26 | 2 3 . 6 2 6 1 3 3 . Treads 16 | . . . 5 2 6 1 2 . . Leg 3 | 2 1 . . . . . . . . Wheel 4 | . . . . . . . 1 3 . Hover 3 | . 2 . 1 . . . . . . Flight . | . . . . . . . . . . Utility 41 | 1 4 . 5 2 8 6 5 10 . Device 19 | . 3 . 2 1 3 4 1 5 . Storage 5 | 1 . . 1 . 1 1 1 . . Processor 5 | . 1 . 1 . 2 . . 1 . Hackware 6 | . . . . . . . 2 4 . Protection 6 | . . . 1 1 2 1 1 . . Artifact . | . . . . . . . . . . Weapon 32 | 2 2 . 9 3 5 3 4 3 1 Energy Gun 13 | 1 . . 5 . 2 1 . 3 1 Energy Cannon 12 | . . . 3 3 1 2 3 . . Ballistic Gun 4 | 1 2 . 1 . . . . . . Ballistic Cannon . | . . . . . . . . . . Launcher 2 | . . . . . 2 . . . . Special Weapon . | . . . . . . . . . . Impact Weapon . | . . . . . . . . . . Slashing Weapon . | . . . . . . . . . . Piercing Weapon . | . . . . . . . . . . Special Melee Weapon 1 | . . . . . . . 1 . . Unidentified Prototypes 1 | . . . 1 . . . . . . Parts Lost 34 | . 2 . 1 . 10 2 3 12 4 Power 5 | . 1 . . . 2 . . 2 . Propulsion 10 | . 1 . . . 2 2 2 2 1 Utility 11 | . . . . . 3 . . 6 2 Weapon 8 | . . . 1 . 3 . 1 2 1 Highest Loss Streak 10 | . 2 . 1 . 3 1 2 6 10 To Critical Strikes . | . . . . . . . . . . Average Backups 9 | . 2 5 9 4 4 9 11 18 17 Power . | . . . . . . . . . . Propulsion . | . . 1 2 1 . . . 1 2 Utility 5 | . . 1 3 1 1 7 8 12 10 Weapon 1 | . 1 3 4 2 1 1 1 1 2 Tool/Special . | . . . . . . . . . . Unused Backups 27 | . 1 . 9 . . . 4 1 12 Power . | . . . . . . . . . . Propulsion 1 | . . . . . . . . . 1 Utility 18 | . 1 . 5 . . . 4 . 8 Weapon 6 | . . . 4 . . . . 1 1 Tool/Special 2 | . . . . . . . . . 2 Average Slot Usage (%) 91 | . 90 100 98 97 92 98 87 88 38 Engine 6 | . 12 14 11 9 4 7 8 1 . Core 2 | . . . . . 4 1 . 5 . Treads 15 | . . . 28 27 24 25 6 1 . Leg 1 | . 19 . . . . . . . . Wheel 3 | . . . . . . . 8 12 7 Hover 1 | . 8 28 4 . . . . . . Device 17 | . 8 14 6 25 16 18 17 25 5 Storage 7 | . 10 . 6 . 5 9 9 7 7 Processor 3 | . 2 14 7 . 6 . . 4 7 Protection 5 | . . . . 8 4 9 9 1 . Energy Gun 6 | . 8 . 11 . 7 12 2 4 9 Energy Cannon 17 | . . . 9 27 18 14 24 16 . Ballistic Gun 2 | . 19 28 10 . . . . . . Peak Build Rating 48 | 6 12 10 22 23 28 31 39 48 30 Average Rating 28 | 4 8 10 17 22 24 27 37 45 24 On Entrance 19 | . 6 10 10 17 23 25 31 39 30 Avg Prop Armor Cover (%) 6 | . . . . . . . 6 5 . Naked Turns . | . . . . . . . . . . Heaviest Build 80 | 13 17 11 40 33 39 47 80 79 48 Greatest Support 69 | 20 20 18 69 63 63 60 40 44 28 Greatest Overweight (x) 2 | . 2 . 1 . . 1 2 2 1 Average Overweight (x) . | . . . . . . . 1 1 1 Largest Inventory Capacity 20 | 8 8 5 15 5 10 10 20 20 20 Average Capacity 12 | 6 7 5 11 5 8 10 15 20 20 Most Carried 20 | . 8 5 15 5 10 10 20 20 19 Average Carried 10 | . 2 5 10 4 7 9 12 19 18 Final Capacity 20 | 8 5 5 5 5 10 10 20 20 20 Final Carried 20 | . 5 5 4 5 8 10 20 19 18 Class Distribution -------------------- 29% | Scavenger-Tank 25% | Bothacker-Tank 8% | Mutant 6% | Scavenger-Skirmisher 5% | Bothacker-Skirmisher 5% | Skirmisher 4% | Scavenger-Gunner 4% | Bothacker-Gunner 3% | Bothacker-Mutant 3% | Gunner Dominant Class ---------------- Mutant | -10/Materials Mutant | -10/Mines Skirmisher | -9/Materials Scavenger-Tank | -8/Materials Scavenger-Tank | -8/Garrison Scavenger-Tank | -8/Materials Bothacker-Tank | -8/Garrison Bothacker-Skirmisher | -7/Factory Bothacker-Mutant | -7/Garrison Resources | -11 -10 -10 -9 -8 -8 -8 -8 -7 -7 ----------- Run | Yrd Mat Min Mat Mat Gar Mat Gar Fac Gar Matter Collected 1946 | 216 201 18 292 80 368 169 397 205 . Remotely . | . . . . . . . . . . Salvage Created 4927 | 23 360 81 952 301 906 674 1116 494 20 Parts 242 | 3 19 5 57 24 44 31 36 22 1 Haulers Intercepted 4 | . 1 . 2 1 . . . . . Recyclers Shooed 3 | . 1 . 2 . . . . . . Parts Field Recycled . | . . . . . . . . . . Retrieved Matter . | . . . . . . . . . . Parts Self-Destructed . | . . . . . . . . . . Prevented . | . . . . . . . . . . Parts Restored . | . . . . . . . . . . Kills | -11 -10 -10 -9 -8 -8 -8 -8 -7 -7 ------- Run | Yrd Mat Min Mat Mat Gar Mat Gar Fac Gar Combat Hostiles Destroyed 92 | . 5 2 16 4 23 14 18 9 1 Melee 1 | . . . . . 1 . . . . Guns 30 | . 5 2 11 . 3 4 . 4 1 Cannons 45 | . . . 5 4 11 8 13 4 . AOE 11 | . . . . . 7 . 4 . . Classes Destroyed 13 | 1 3 . 3 2 2 1 1 . . Worker 3 | . . . 2 . . . . 1 . Tunneler 2 | 1 . . . 1 . . . . . Hauler 4 | . 1 . 2 1 . . . . . Recycler 4 | . 1 . 1 . . 1 . 1 . Operator 2 | . . . . 1 . . . 1 . Swarmer 18 | . . . 3 . 6 4 . 4 1 Grunt 39 | . 5 2 7 . 8 4 11 2 . Brawler 1 | . . . . . . . 1 . . Sentry 20 | . . . 6 3 4 4 3 . . Demolisher 1 | . . . . . 1 . . . . Specialist 2 | . . . . . . 2 . . . Hunter 4 | . . . . 1 . . 1 2 . Programmer 7 | . . . . . 4 . 2 1 . Best Kill Streak 5 | 1 3 2 4 2 5 5 4 4 1 Combat Bots Only 5 | . 3 2 4 2 5 5 4 3 1 Max Kills in Single Turn 3 | 1 1 1 2 1 3 1 1 1 1 Gunslinging 1 | . . . 1 . . . . . . Exploded 3 | . . . . . 3 . 1 . . Melee 1 | . . . . . 1 . . . . Uniques/NPCs Destroyed . | . . . . . . . . . . Combat | -11 -10 -10 -9 -8 -8 -8 -8 -7 -7 -------- Run | Yrd Mat Min Mat Mat Gar Mat Gar Fac Gar Hostile Shots Fired 518 | . 43 3 62 16 136 49 97 78 34 Missed 120 | . 7 . 19 7 24 9 30 18 6 Hits 398 | . 36 3 43 9 112 40 67 60 28 Projectile 398 | . 36 3 43 9 112 40 67 60 28 AOE 4 | . . . . . 4 . . . . Critical Strikes 19 | . . 1 2 1 4 3 3 4 1 Damage Taken 6377 | . 460 49 620 126 1916 556 1074 1145 431 Core 1008 | . 103 . 60 . 246 57 217 245 80 Absorbed by Shields 30 | . . . . . . . 30 . . Core Remaining (%) 62 | 100 . 58 85 . . . 5 . . Volleys Fired 271 | 2 30 3 41 14 51 34 64 27 5 Largest 3 | 2 2 2 3 3 3 3 3 3 2 Hottest 240 | 70 70 46 204 204 180 229 240 240 138 Shots Fired 720 | 4 60 6 124 40 135 99 170 76 6 Gun 270 | 4 60 6 83 . 24 38 12 37 6 Cannon 439 | . . . 41 40 106 61 152 39 . Launcher 11 | . . . . . 5 . 6 . . Special . | . . . . . . . . . . Kinetic 71 | 2 39 6 24 . . . . . . Thermal 579 | 2 21 . 41 40 130 99 164 76 6 Explosive 11 | . . . . . 5 . 6 . . Electromagnetic 59 | . . . 59 . . . . . . Robot Hit Streak 14 | 3 10 10 14 12 8 13 11 6 5 Robot Miss Streak 7 | . 3 . 4 2 7 3 4 7 1 Penetration Max . | . . . . . . . . . . Secondary Targets 5 | . 2 . 2 . . . . 1 . Max Gunslinging Chain 1 | . 1 . 1 . . . . 1 . Shots Hit Robots 404 | 3 39 5 81 15 71 57 84 44 5 Core Hits 175 | 1 17 4 42 6 34 18 38 14 1 Critical Kills 3 | . . . . . . 1 2 . . Critical Parts Destroyed . | . . . . . . . . . . Critical Strikes 12 | . 1 . . . 3 2 2 2 2 Burn 9 | . 1 . . . 3 1 . 2 2 Meltdown 3 | . . . . . . 1 2 . . Melee Attacks 16 | . . . . . . . 7 9 . Impact . | . . . . . . . . . . Slashing . | . . . . . . . . . . Piercing . | . . . . . . . . . . Sneak Attacks 7 | . . . . . . . 4 3 . Combat Hostiles . | . . . . . . . . . . Follow-up Attacks . | . . . . . . . . . . Damage Inflicted 10388 | 35 495 67 1426 341 2543 1273 3101 1010 97 Guns 2775 | 35 489 67 936 . 267 379 114 391 97 Cannons 5707 | . . . 412 338 1480 890 1997 590 . Explosions 1833 | . . . 52 . 791 . 990 . . Melee . | . . . . . . . . . . Ramming 73 | . 6 . 26 3 5 4 . 29 . Kinetic 621 | 10 301 67 243 . . . . . . Thermal 7220 | 25 188 . 464 338 1747 1269 2111 981 97 Explosive 1781 | . . . . . 791 . 990 . . Electromagnetic 693 | . . . 693 . . . . . . Impact . | . . . . . . . . . . Slashing . | . . . . . . . . . . Piercing . | . . . . . . . . . . Highest Corruption 12 | . 2 2 2 . 10 10 12 . . Average Corruption 9 | . 2 2 2 . 9 10 11 . . Corruption Purged . | . . . . . . . . . . Corruption Blocked . | . . . . . . . . . . Effects 128 | . . . 3 . 45 27 53 . . Message Errors 32 | . . . . . 16 6 10 . . Matter Fused 34 | . . . 1 . 11 6 16 . . Heat Flow Errors 13 | . . . . . 5 . 8 . . Energy Discharges 11 | . . . 1 . 3 3 4 . . Parts Rejected 1 | . . . . . . 1 . . . Parts Fused 1 | . . . . . 1 . . . . Data Loss (minor) 13 | . . . . . 4 3 6 . . Data Loss (major) 3 | . . . . . 1 1 1 . . Misfires 6 | . . . 1 . 1 2 2 . . Alerts 3 | . . . . . 2 . 1 . . Weapon Failures 11 | . . . . . 1 5 5 . . Overload Shots . | . . . . . . . . . . Overflow Damage 229 | . . . 10 14 117 . 80 8 . Projectiles 94 | . . . 1 14 40 . 31 8 . Explosions 135 | . . . 9 . 77 . 49 . . Melee . | . . . . . . . . . . Knockbacks . | . . . . . . . . . . Impact . | . . . . . . . . . . Kinetic . | . . . . . . . . . . Secondary . | . . . . . . . . . . Self-Inflicted Damage 287 | . 1 . 37 . 164 . 71 14 . Shots 7 | . . . 1 . 3 . 3 . . Rammed 13 | . 1 . 6 . 1 3 . 2 . Targets Rammed 17 | . 3 . 6 1 2 3 . 2 . Kicked 2 | . 2 . . . . . . . . Crushed 2 | . . . . 1 1 . . . . Highest Temperature 497 | 40 202 33 436 168 375 247 497 424 . Average Temperature 115 | 20 86 22 139 63 121 109 102 148 . Received Heat Transfer 1773 | . 264 45 219 54 342 216 462 171 . Effects 6 | . . . 4 . 1 . 1 . . Shutdowns 2 | . . . 2 . . . . . . Energy Bleed 3 | . . . 2 . 1 . . . . Short Circuit 1 | . . . . . . . 1 . . Siege Activations . | . . . . . . . . . . Martial Activations . | . . . . . . . . . . Shielding Activations . | . . . . . . . . . . Robots Disrupted . | . . . . . . . . . . Combat Hostiles . | . . . . . . . . . . Robots Corrupted . | . . . . . . . . . . Combat Hostiles . | . . . . . . . . . . Parts Fried 7 | . . . 7 . . . . . . Impact Corruptions . | . . . . . . . . . . Robots Melted 8 | . . . . . 1 2 4 1 . Combat Hostiles 5 | . . . . . 1 2 1 1 . Parts Melted 47 | . 3 . 3 2 10 12 15 2 . Heat Transferred 13987 | 74 629 . 840 555 2997 2612 3946 2001 333 Parts Sabotaged . | . . . . . . . . . . Parts Stolen . | . . . . . . . . . . Parts Stripped . | . . . . . . . . . . Power Chain Reactions 1 | . . . 1 . . . . . . Alert | -11 -10 -10 -9 -8 -8 -8 -8 -7 -7 ------- Run | Yrd Mat Min Mat Mat Gar Mat Gar Fac Gar Maximum Alert Level 3 | . . . 1 . 3 2 3 2 . Low Security (%) 25 | 100 100 100 77 100 12 . . . 100 Level 1 32 | . . . 22 . 27 87 21 49 . Level 2 25 | . . . . . 33 12 36 50 . Level 3 15 | . . . . . 26 . 41 . . Level 4 . | . . . . . . . . . . Level 5 . | . . . . . . . . . . High Security . | . . . . . . . . . . Max Security . | . . . . . . . . . . Peak Influence 1046 | . 75 55 307 139 915 418 1046 548 135 Initial 548 | . . 5 17 118 76 416 254 548 132 Average 392 | . 25 45 129 97 509 358 628 391 125 Influence Increases 3384 | 5 166 50 553 180 939 313 902 241 35 Destroy 0b10 Robot/C 1810 | . 100 40 320 80 520 210 375 150 15 Destroy 0b10 Robot/NC 97 | 5 10 . 25 15 10 4 16 12 . Destroy Leader 356 | . 22 10 94 42 20 72 40 48 8 Allied During Kill 37 | . . . . . 6 . 28 3 . Successful Hack 97 | . 19 . 20 9 20 5 11 13 . Disable Machine 108 | . . . 15 30 15 . 36 12 . Anti-Garrison Action 478 | . . . . . 251 . 227 . . Destroy Structure 188 | . . . 4 4 82 22 73 3 . Partial Spotted 60 | . 15 . 45 . . . . . . Lose Combat Pursuer 153 | . . . 30 . 15 . 96 . 12 Influence Decreases 3257 | 5 151 20 315 345 202 777 247 1098 97 Entered New Map 1376 | . . 10 28 165 42 439 137 498 57 Time Decay 1297 | 5 131 10 273 180 . 318 . 380 . Lost Part 340 | . 20 . 10 . 100 20 30 120 40 Lost Ally 240 | . . . . . 60 . 80 100 . Purge Threat 4 | . . . 4 . . . . . . Squads Dispatched 9 | . . . 1 1 . 3 . 4 . Investigation . | . . . . . . . . . . Extermination 1 | . . . . . . . . 1 . Reinforcement 5 | . . . 1 . . 2 . 2 . Assault . | . . . . . . . . . . Garrison 3 | . . . . 1 . 1 . 1 . Intercept . | . . . . . . . . . . Searches Triggered . | . . . . . . . . . . Construction Impeded 1 | . . . . . . . . 1 . Haulers Reinforced . | . . . . . . . . . . Active Scanning Responses . | . . . . . . . . . . Cargo Convoy Interrupts 1 | . . . . . . . . 1 . Stealth | -11 -10 -10 -9 -8 -8 -8 -8 -7 -7 --------- Run | Yrd Mat Min Mat Mat Gar Mat Gar Fac Gar Distress Signals 13 | . 2 . 5 2 . 1 . 3 . Communications Jammed . | . . . . . . . . . . Distress Signals . | . . . . . . . . . . Times Spotted 150 | . 9 1 31 6 30 19 33 17 4 Peak Tracking Total 6 | . 5 1 6 2 4 4 4 4 4 Tactical Retreats 8 | . . . 1 . 1 . 5 . 1 Traps | -11 -10 -10 -9 -8 -8 -8 -8 -7 -7 ------- Run | Yrd Mat Min Mat Mat Gar Mat Gar Fac Gar Traps Triggered 12 | . . . . . 1 . 10 1 . Indirectly . | . . . . . . . . . . Trap Hack Attempts . | . . . . . . . . . . Triggered . | . . . . . . . . . . Disarmed . | . . . . . . . . . . Reprogrammed . | . . . . . . . . . . Reused . | . . . . . . . . . . Traps Extracted . | . . . . . . . . . . Installed . | . . . . . . . . . . Triggered . | . . . . . . . . . . Most Traps Carried 6 | . . . . . 6 . . . . Machines | -11 -10 -10 -9 -8 -8 -8 -8 -7 -7 ---------- Run | Yrd Mat Min Mat Mat Gar Mat Gar Fac Gar Machines Disabled 15 | . . . 1 2 5 . 6 1 . Max in Single Turn 2 | . . . 1 1 2 . 1 1 . Garrison Relay 5 | . . . . . 2 . 3 . . Phase Generator 1 | . . . . . 1 . . . . Machines Repaired . | . . . . . . . . . . Machines Dismantled . | . . . . . . . . . . Machines Sabotaged . | . . . . . . . . . . Overloaded Fab Kills . | . . . . . . . . . . Hacking | -11 -10 -10 -9 -8 -8 -8 -8 -7 -7 --------- Run | Yrd Mat Min Mat Mat Gar Mat Gar Fac Gar Machines Accessed 22 | . 4 . 4 3 2 5 2 2 . Terminals 17 | . 4 . 4 2 2 2 2 1 . Fabricators . | . . . . . . . . . . Repair Stations . | . . . . . . . . . . Recycling Units . | . . . . . . . . . . Scanalyzers 2 | . . . . . . 2 . . . Garrison Access 3 | . . . . 1 . 1 . 1 . Total Hacks 62 | . 11 . 15 11 5 11 4 5 . Successful 33 | . 6 . 9 4 2 8 1 3 . Failed 29 | . 5 . 6 7 3 3 3 2 . Catastrophic 2 | . . . . . 1 . 1 . . Database Lockouts . | . . . . . . . . . . Manual 14 | . 4 . 3 4 . 1 . 2 . Terminals 52 | . 11 . 15 9 5 6 4 2 . Fabricators . | . . . . . . . . . . Repair Stations . | . . . . . . . . . . Recycling Units . | . . . . . . . . . . Scanalyzers 4 | . . . . . . 4 . . . Garrison Access 6 | . . . . 2 . 1 . 3 . Terminal Hacks 21 | . 5 . 7 2 2 3 1 1 . Prototype ID Bank 1 | . . . 1 . . . . . . Open Door 1 | . . . . . 1 . . . . Branch Access Points 3 | . 1 . 2 . . . . . . Emergency Access Points 3 | . . . 1 . 1 . 1 . . Unreport Threat 1 | . . . 1 . . . . . . Locate Traps 2 | . 1 . . 1 . . . . . Dispatch Records 1 | . . . . . . 1 . . . Reinforcement Status 1 | . . . . 1 . . . . . Hauler Manifests 4 | . 1 . 1 . . 1 . 1 . Registered Components 1 | . . . 1 . . . . . . Zone Layout 3 | . 2 . . . . 1 . . . Fabricator Hacks . | . . . . . . . . . . Repair Station Hacks . | . . . . . . . . . . Recycling Unit Hacks . | . . . . . . . . . . Scanalyzer 3 | . . . . . . 3 . . . Retrieve Study 3 | . . . . . . 3 . . . Garrison Access Hacks 3 | . . . . 1 . 1 . 1 . Unlock Access 3 | . . . . 1 . 1 . 1 . Unauthorized Hacks 6 | . 1 . 2 1 . 1 . 1 . Terminals 5 | . 1 . 2 1 . 1 . . . Track 3 | . . . 2 . . 1 . . . Operators 2 | . 1 . . 1 . . . . . Fabricators . | . . . . . . . . . . Repair Stations . | . . . . . . . . . . Recycling Units . | . . . . . . . . . . Scanalyzers . | . . . . . . . . . . Garrison Access 1 | . . . . . . . . 1 . Restock 1 | . . . . . . . . 1 . Data Cores Recovered . | . . . . . . . . . . Used . | . . . . . . . . . . Hacking Detections 22 | . 4 . 4 3 2 5 2 2 . Full Trace Events 2 | . . . . . 1 . 1 . . Feedback Events . | . . . . . . . . . . Feedback Blocked . | . . . . . . . . . . Robot Schematics Acquired . | . . . . . . . . . . Robots Built . | . . . . . . . . . . Authchips . | . . . . . . . . . . Time . | . . . . . . . . . . Total Robot Build Rating . | . . . . . . . . . . Part Schematics Acquired . | . . . . . . . . . . Parts Built . | . . . . . . . . . . Authchips . | . . . . . . . . . . Time . | . . . . . . . . . . Total Part Build Rating . | . . . . . . . . . . Part Studies Acquired 3 | . . . . . . 3 . . . Parts Repaired . | . . . . . . . . . . Time . | . . . . . . . . . . Parts Recycled . | . . . . . . . . . . Recycled Matter . | . . . . . . . . . . Retrieved Matter . | . . . . . . . . . . Retrieved Components . | . . . . . . . . . . Parts Scanalyzed . | . . . . . . . . . . Part Schematics Acquired . | . . . . . . . . . . Parts Damaged . | . . . . . . . . . . Bothacking | -11 -10 -10 -9 -8 -8 -8 -8 -7 -7 ------------ Run | Yrd Mat Min Mat Mat Gar Mat Gar Fac Gar Used RIF Installer 3 | . . . . . 2 . 1 . . Hotswap 1 | . . . . . . . 1 . . Threat Obfuscator 1 | . . . . . 1 . . . . Robots Hacked 9 | . . . . . . . 2 7 . Non-combat 2 | . . . . . . . . 2 . Combat 7 | . . . . . . . 2 5 . Robot Hacks Applied 10 | . . . . . . . 2 8 . no_distress 1 | . . . . . . . . 1 . generate_echo 1 | . . . . . . . . 1 . find_chute 1 | . . . . . . . . 1 . formatsys_high 7 | . . . . . . . 2 5 . Relay Couplers Released 22 | . . . . . 10 . 12 . . Machine Destruction 22 | . . . . . 10 . 12 . . Attached 5 | . . . . . . . 2 3 . Fabnet Peak Effective % . | . . . . . . . . . . Robots Rewired 3 | . . . . . 1 . 2 . . Allies Hacked 1 | . . . . . 1 . . . . Hacks Repelled . | . . . . . . . . . . Allies | -11 -10 -10 -9 -8 -8 -8 -8 -7 -7 -------- Run | Yrd Mat Min Mat Mat Gar Mat Gar Fac Gar Total Allies 12 | . . . . . 3 . 4 5 . Largest Group 3 | . . . . . 3 . 2 2 . Highest-Rated Group 75 | . . . . . 75 . 51 24 . Highest-Rated Ally 31 | . . . . . 31 . 31 12 . Total Orders . | . . . . . . . . . . Ally Attacks 61 | . . . . . 12 . 42 7 . Total Damage 1013 | . . . . . 251 . 670 92 . Kills 12 | . . . . . 4 . 7 1 . Allies Corrupted . | . . . . . . . . . . Allies Melted . | . . . . . . . . . . Intel | -11 -10 -10 -9 -8 -8 -8 -8 -7 -7 ------- Run | Yrd Mat Min Mat Mat Gar Mat Gar Fac Gar Active Infowar (turns) 3086 | . . . 401 296 1433 346 . 610 . Sensors 517 | . . . . . . . . 517 . Terrain 1764 | . . . . 296 1433 35 . . . Structural 54 | . . . . . . 54 . . . Traps 257 | . . . . . . 257 . . . T.N.C. 836 | . . . 401 . 435 . . . . Jamming 264 | . . . . . . . . 264 . Robot Analysis Total . | . . . . . . . . . . Derelict Logs Recovered . | . . . . . . . . . . Drone Launches . | . . . . . . . . . . Drone Recoveries . | . . . . . . . . . . Exploration | -11 -10 -10 -9 -8 -8 -8 -8 -7 -7 ------------- Run | Yrd Mat Min Mat Mat Gar Mat Gar Fac Gar Turns Passed 5738 | 64 338 20 618 366 1433 717 1256 886 40 Spaces Moved 3194 | 45 238 20 302 186 726 339 689 639 10 Core 5 | 5 . . . . . . . . . Treads 1472 | . . . 208 186 726 339 13 . . Legs 151 | 40 111 . . . . . . . . Wheels 1325 | . . . . . . . 676 639 10 Hover 241 | . 127 20 94 . . . . . . Flight . | . . . . . . . . . . Fastest Speed 50 | 50 56 56 52 160 160 160 115 105 115 Average Speed 133 | 112 86 56 127 160 160 164 125 111 115 Slowest Speed 240 | 120 190 56 160 160 160 200 240 130 115 Overloaded Moves . | . . . . . . . . . . Propulsion Burnouts . | . . . . . . . . . . Robots Hopped . | . . . . . . . . . . Potential Cave-ins . | . . . . . . . . . . Cave-ins Triggered . | . . . . . . . . . . Exploration Rate (%) 34 | 4 52 6 31 24 94 46 74 9 3 Regions Visited 9 Branch Regions 1 Pre-discovered Areas . | . . . . . . . . . . Known Exits Taken 4 | . 1 . . 1 . 1 . 1 . Unknown Exits Taken 3 | 1 . 1 1 . . . . . . Scrap Searched . | . . . . . . . . . . Spaces Dug 10 | . . . . 1 6 3 . . . Terrain Destroyed 156 | . . . 2 4 80 20 50 . . Melee . | . . . . . . . . . . Projectile 25 | . . . . 4 1 20 . . . AOE 131 | . . . 2 . 79 . 50 . . Terrain Rammed . | . . . . . . . . . . Walls Destroyed . | . . . . . . . . . . Machines Disabled . | . . . . . . . . . . Actions | -11 -10 -10 -9 -8 -8 -8 -8 -7 -7 --------- Run | Yrd Mat Min Mat Mat Gar Mat Gar Fac Gar Total 4097 | 52 314 22 444 225 888 422 944 754 32 Wait 209 | . 17 . 30 9 30 18 57 32 16 Move 3188 | 44 237 19 301 186 725 339 688 639 10 Hop . | . . . . . . . . . . Pick Up 65 | . 6 . 21 1 13 5 11 8 . Fast Attach 58 | 6 8 . 11 2 9 6 5 11 . Attach 16 | . . . 4 . 3 . 4 4 1 Detach 17 | . 3 . 3 . 2 . 5 4 . Swap 58 | . 2 . 7 6 16 6 14 7 . Drop 77 | . 8 . 20 6 15 11 8 9 . Fire 271 | 2 30 3 41 14 51 34 64 27 5 Melee 16 | . . . . . . . 7 9 . Ram 2 | . 1 . . . . . . 1 . Kick 2 | . 2 . . . . . . . . Crush 12 | . . . 6 1 2 3 . . . Escape Stasis 81 | . . . . . 2 . 79 . . Rewire 25 | . . . . . 20 . 2 3 . Trap . | . . . . . . . . . . Miscellaneous . | . . . . . . . . . . Route ------- -11/Scrapyard -10/Materials (discovered 2 exits: *Mat / *Min) -10/Mines -9/Materials (discovered 2 exits: *Mat / Min) -8/Materials (discovered 4 exits: *Fac / [*Sto x2] / Gar) -8/Garrison (discovered 3 exits: *Mat x3) -8/Materials (discovered 3 exits: *Fac x2 / Gar) -8/Garrison (discovered 2 exits: *Fac x2) -7/Factory -7/Garrison History --------- Turn | Location | Event 3 | -11/Scrapyard | Discovered new exit (range 15) 65 | -11/Scrapyard | Entered Materials 336 | -10/Materials | Discovered new exit (range 17) 351 | -10/Materials | Build established: Mutant 371 | -10/Materials | Identified exit to Mines 403 | -10/Materials | Entered Mines 419 | -10/Mines | Discovered new exit (range 5) 423 | -10/Mines | Entered Materials 423 | -9/Materials | Evolved 2 slots: Propulsion x1, Weapon x1 446 | -9/Materials | Identified exit to Mines 684 | -9/Materials | Discovered new exit (range 15) 1041 | -9/Materials | Entered another Materials area 1041 | -8/Materials | Evolved 2 slots: Utility x2 1109 | -8/Materials | Discovered new exit (range 13) 1268 | -8/Materials | Discovered new exit (range 10) 1354 | -8/Materials | Build established: Scavenger-Tank 1384 | -8/Materials | Discovered new exit (range 3) 1385 | -8/Materials | Garrison activated, responded to threat 1407 | -8/Materials | Identified exit to Garrison 1407 | -8/Materials | Entered Garrison 1423 | -8/Garrison | Triggered checkpoint 1449 | -8/Garrison | Installed Relay Interface Framework 1587 | -8/Garrison | Phase Generator disabled 1713 | -8/Garrison | Triggered checkpoint 1799 | -8/Garrison | Triggered checkpoint 1979 | -8/Garrison | Triggered checkpoint 1979 | -8/Garrison | Garrison Relay disabled 2046 | -8/Garrison | Discovered new exit (range 11) 2129 | -8/Garrison | Triggered checkpoint 2213 | -8/Garrison | Triggered checkpoint 2281 | -8/Garrison | Lost 3 parts (1p1n1w) 2375 | -8/Garrison | Discovered new exit (range 12) 2396 | -8/Garrison | System corruption reached 10% 2420 | -8/Garrison | Expanded RIF knowledge: Threat Obfuscation 2509 | -8/Garrison | Triggered checkpoint 2625 | -8/Garrison | Triggered checkpoint 2646 | -8/Garrison | Rescued a captive Derelict 2647 | -8/Garrison | Rescued a captive Derelict 2698 | -8/Garrison | Garrison Relay disabled 2744 | -8/Garrison | Discovered new exit (range 13) 2840 | -8/Garrison | Lost 3 allies 2840 | -8/Garrison | Entered Materials 3138 | -8/Materials | Discovered new exit (range 8) 3174 | -8/Materials | Core integrity fell below 50% 3477 | -8/Materials | Garrison activated, responded to threat 3515 | -8/Materials | Discovered new exit (range 9) 3557 | -8/Materials | Identified exit to Garrison 3557 | -8/Materials | Entered Garrison 3573 | -8/Garrison | Triggered checkpoint 3683 | -8/Garrison | Build established: Bothacker-Tank 3823 | -8/Garrison | Triggered checkpoint 3853 | -8/Garrison | Garrison Relay disabled 3911 | -8/Garrison | Triggered checkpoint 3927 | -8/Garrison | Triggered checkpoint 4015 | -8/Garrison | Triggered checkpoint 4120 | -8/Garrison | Discovered new exit (range 11) 4292 | -8/Garrison | Core integrity fell below 20% 4311 | -8/Garrison | Triggered checkpoint 4318 | -8/Garrison | Garrison Relay disabled 4423 | -8/Garrison | Triggered checkpoint 4477 | -8/Garrison | Triggered checkpoint 4508 | -8/Garrison | Expanded RIF knowledge: Hotswap 4541 | -8/Garrison | Garrison Relay disabled 4577 | -8/Garrison | Discovered new exit (range 8) 4631 | -8/Garrison | Triggered checkpoint 4813 | -8/Garrison | Entered Factory 4813 | -7/Factory | Evolved 2 slots: Utility x2 4857 | -7/Factory | Garrison activated, responded to threat 4968 | -7/Factory | Lost 3 parts (3u) 4979 | -7/Factory | Identified exit to Garrison 5380 | -7/Factory | Cargo convoy interrupted 5539 | -7/Factory | Lost 4 allies 5699 | -7/Factory | Entered Garrison 5739 | -7/Garrison | Self-destructed Last Messages --------------- 05692_ Imp. Sensor Array destroyed. 05692_ Knocked back. 05696_ Lgt. Nuclear Core+ destroyed. 05696_ Knocked back. 05698_ Penetrated by Slug. 05698_ Com. Wheel destroyed. 05698_ Hvy. Laser destroyed. 05698_ Knocked back. 05699_ Slammed into H-61 Shepherd. LOCATION=GARRISON GOAL=ESCAPE 05708_ C-30 ARC bursts open, deploying its payload. 05708_ S-27 Virus unfolds itself. 05708_ Particle Charger destroyed. 05716_ Adv. Heat Sink destroyed. 05719_ S-27 Virus suffers critical hit (Burn). 05719_ S-27 Virus destroyed. 05725_ S-27 Virus suffers critical hit (Burn). 05725_ Hvy. Laser destroyed. 05733_ Arm. Huge Wheel destroyed. Map ----- +----------------------------------------------------+ | ?????????????????????????????????????????????????? | | ?????????????????????????????????????????????????? | | ?????????????????????????????????????????????????? | | ?????????????????????????????????????????????????? | | ?????????????????????????????????????????????????? | | ?????????????????????????????????????????????????? | | ?????????????????????????????????????????????????? | | ?????????????????????????????????????????????????? | | ?????????????????????????????????????????????????? | | ?????????????????????????????????????????????????? | | ??????????????????????????? ????????????????????? | | ??????????????????????????? #???????????????????? | | ??????????????????????????? ???????????????????? | | ??????????????????????????? ???????????????????? | | ??????????????????????????? %#???????????????????? | | ??????????????????????????? #???????????????????? | | ??????????????????????????? #???????????????????? | | ??????????????????????????# #???????????????????? | | ??????????????????????????# #???????????????????? | | ??????????????????????????# #???????????????????? | | ??????????????????????????# #???????????????????? | | ??????????????????????????# #???????????????????? | | ??????????????????????????# #???????????????????? | | ??????????????????????????# #???????????????????? | | ?????????????????########## #???????????????????? | | ?????????????????# @%s #???????????????????? | | ?????????????????# s #???????????????????? | | ?????????????????# #########???????????????????? | | ?????????????????# #???????????????????????????? | | ?????????????????#####???????????????????????????? | | ?????????????????????????????????????????????????? | | ?????????????????????????????????????????????????? | | ?????????????????????????????????????????????????? | | ?????????????????????????????????????????????????? | | ?????????????????????????????????????????????????? | | ?????????????????????????????????????????????????? | | ?????????????????????????????????????????????????? | | ?????????????????????????????????????????????????? | | ?????????????????????????????????????????????????? | | ?????????????????????????????????????????????????? | | ?????????????????????????????????????????????????? | | ?????????????????????????????????????????????????? | | ?????????????????????????????????????????????????? | | ?????????????????????????????????????????????????? | | ?????????????????????????????????????????????????? | | ?????????????????????????????????????????????????? | | ?????????????????????????????????????????????????? | | ?????????????????????????????????????????????????? | | | | | +----------------------------------------------------+ Best States ------------- Heat Dissipation 95 Coolant Potential 50 Energy Generation 18 Energy Capacity 275 Matter Stores 300 Matter Capacity 300 Sight Range 16 Robot Scan Range 15 Terrain Scan Range 16 Terrain Scan Density 10 Jamming Range 12 Additional Mass Support 6 Armor Coverage 375 Evasion (%) 55 Targeting Accuracy 5 Target Analysis 5 Recoil Reduction 3 Particle Charging 15 Defensive Hacking 10 Relay Coupler Types 2 Relay Coupler Value 53 Item Schematics ----------------- None Robot Schematics ------------------ None Fabricated ------------ Nothing Repaired ---------- Nothing Studied --------- Lgt. Treads | -8/Materials | Hacked Lgt. Nuclear Core | -8/Materials | Hacked Imp. Datajack | -8/Materials | Hacked Alien Tech Used ----------------- None Achievements -------------- May I Have Another? Not Today, Chutes Challenges ------------ None Game ------ Seed TeslaCentriumStrikerail Manual? 0 Play Time 00:51:18 Cumulative 104.8 hours Start 2025.11.13 @ 12:19:40 End 2025.11.14 @ 11:59:43 Sessions 5 Manual Loads 0 Difficulty Rogue Special Mode None Game No. 91 Rogue 91 Adventurer 0 Explorer 0 Win Type - Total 1 Types 1/0/0/0/0/0/0/0/0/0 Lore% 55 Gallery% 60 Achievement% 44 Wizard Run 0 Options --------- Layout 0 ASCII 0 Keyboard 1 Movement Vi Keybinds 0 Fullscreen 1 Font 18/SmallcapsGlow Map View 76x50 Zoom Use 0% Tactical HUD 1 Map Filters NONE Filters NONE Steam 1 RUN: 50795cb9-e771-47b7-a51b-3305159b4204